bitfinex/quotes_BTCUSD_20230901
["timestamp","ask_amount","ask_price","bid_price","bid_amount"]
[1693578949268,0.26704641,25857.0,25855.0,0.07162407]
[1693578949539,0.0095921,25857.0,25855.0,0.43754678]
[1693578950378,0.0095921,25857.0,25856.0,0.01456856]
[1693578951037,0.0095921,25857.0,25855.0,0.43754678]
[1693578951038,0.0095921,25857.0,25855.0,0.38708678]
[1693578952100,0.17263697,25857.0,25852.0,0.1164018]
[1693578952314,0.25780868,25857.0,25853.0,0.38708678]
[1693578952532,0.17263697,25857.0,25855.0,0.038]
[1693578952742,0.0095921,25857.0,25855.0,0.038]
[1693578953398,0.0095921,25857.0,25856.0,0.20838203]
[1693578954039,0.0687375,25857.0,25856.0,0.038]
[1693578954261,1.18364932,25857.0,25856.0,0.038]
[1693578954710,1.27580363,25857.0,25856.0,0.038]
[1693578955148,1.27580363,25857.0,25856.0,0.033]
[1693578955599,1.4140351,25857.0,25856.0,0.033]
[1693578956013,1.27580363,25857.0,25856.0,0.033]
[1693578956220,1.4140351,25857.0,25856.0,0.033]
[1693578956848,1.27580363,25857.0,25856.0,0.033]
[1693578957055,1.4140351,25857.0,25856.0,0.033]
[1693578957351,1.3548897,25857.0,25856.0,0.033]
[1693578957773,1.66982217,25857.0,25856.0,0.033]
[1693578958220,1.85836217,25857.0,25856.0,0.033]
[1693578958430,2.44974244,25857.0,25856.0,0.033]
[1693578958662,2.44860244,25857.0,25856.0,0.033]
[1693578958884,2.40848244,25857.0,25856.0,0.033]
[1693578959087,1.78065799,25857.0,25856.0,0.033]
[1693578959303,1.73448971,25857.0,25856.0,0.033]
[1693578959535,0.0095921,25856.0,25852.0,0.16382861]
[1693578959754,0.24049693,25859.0,25855.0,0.1597]
[1693578959977,0.0095921,25858.0,25855.0,0.1597]
[1693578960184,0.09236539,25859.0,25856.0,0.038]
[1693578960418,0.09236539,25860.0,25858.0,0.1104079]
[1693578960644,0.09236539,25862.0,25859.0,0.1597]
[1693578960861,0.14813154,25863.0,25861.0,0.1597]
[1693578960862,0.24049693,25863.0,25861.0,0.1597]
[1693578961063,0.24049693,25863.0,25862.0,0.38708678]
[1693578961304,1.34558576,25863.0,25862.0,0.38708678]
[1693578961538,1.34558576,25863.0,25862.0,0.54678678]
[1693578961746,1.20704632,25863.0,25862.0,0.58396589]
[1693578961999,1.11468093,25863.0,25862.0,0.38708678]
[1693578962251,1.11468093,25863.0,25862.0,0.5674263]
[1693578962511,0.0095921,25864.0,25862.0,0.401547]
[1693578962766,0.0095921,25864.0,25862.0,0.57033192]
[1693578964292,0.0095921,25864.0,25863.0,0.06939064]
[1693578964545,0.0095921,25864.0,25863.0,0.50357118]
[1693578964781,0.09236539,25866.0,25863.0,0.47418054]
[1693578964991,0.10195749,25868.0,25865.0,0.1597]
[1693578965198,0.13853944,25869.0,25866.0,0.38708678]
[1693578965199,0.09236539,25869.0,25866.0,0.38708678]
[1693578965413,1.11444488,25868.0,25867.0,0.04599149]
[1693578965599,1.12405724,25868.0,25867.0,0.43307827]
[1693578966857,1.12405724,25868.0,25867.0,0.62189134]
[1693578967507,0.0095921,25868.0,25867.0,0.62189134]
[1693578967709,1.12405331,25868.0,25867.0,0.62189134]
[1693578967886,0.0095921,25868.0,25867.0,0.62189134]
[1693578968297,0.0095921,25869.0,25867.0,0.62189134]
[1693578968505,0.0095921,25869.0,25868.0,0.43418054]
[1693578969139,0.0095921,25870.0,25868.0,0.43418054]
[1693578969346,0.0095921,25869.0,25868.0,0.43418054]
[1693578969760,0.0095921,25869.0,25868.0,0.65376151]
[1693578970175,0.0095921,25871.0,25868.0,0.59388054]
[1693578970385,0.0095921,25871.0,25869.0,0.04599149]
[1693578970591,0.0095921,25871.0,25870.0,0.38708678]
[1693578971209,0.0095921,25872.0,25870.0,0.38708678]
[1693578971439,0.0095921,25871.0,25870.0,0.38708678]
[1693578972267,0.0095921,25871.0,25870.0,0.59818543]
[1693578972478,0.0095921,25871.0,25870.0,0.64527919]
[1693578972905,0.0095921,25872.0,25870.0,0.64527919]
[1693578973117,0.0095921,25871.0,25870.0,0.64527919]
[1693578973321,0.0095921,25872.0,25870.0,0.64527919]
[1693578973526,0.0095921,25871.0,25870.0,0.64527919]
[1693578974136,0.0165921,25871.0,25870.0,0.64527919]
[1693578974342,0.007,25871.0,25870.0,0.64527919]
[1693578974670,0.0095921,25872.0,25870.0,0.64765521]
[1693578974879,0.0095921,25872.0,25871.0,0.09180425]
[1693578975307,0.0095921,25872.0,25871.0,0.04581276]
[1693578975747,0.0095921,25872.0,25871.0,0.56936519]
[1693578976670,0.0095921,25872.0,25871.0,0.72402919]
[1693578976873,0.0095921,25872.0,25871.0,0.72502919]
[1693578977084,0.0095921,25872.0,25871.0,0.155664]
[1693578977499,0.07054943,25872.0,25871.0,0.155664]
[1693578978115,0.07754943,25872.0,25871.0,0.156664]
[1693578979581,0.0165921,25872.0,25871.0,0.156664]
[1693578979797,0.1762921,25872.0,25871.0,0.156664]
[1693578980000,0.24687989,25872.0,25871.0,0.002]
[1693578980642,0.1762921,25872.0,25871.0,0.102]
[1693578980845,0.22999232,25872.0,25871.0,0.102]
[1693578981461,0.1762921,25872.0,25871.0,0.1018812]
[1693578981660,0.1762921,25872.0,25865.0,0.04991648]
[1693578981661,0.000115,25870.0,25865.0,0.04991648]
[1693578981871,0.09476381,25869.0,25866.0,0.03843084]
[1693578982080,0.09476381,25869.0,25866.0,0.01435859]
[1693578982287,0.0095921,25868.0,25866.0,0.01435859]
[1693578982492,0.0095921,25868.0,25862.0,0.04]
[1693578982703,0.0095921,25866.0,25863.0,0.38708678]
[1693578982916,0.07040394,25865.0,25863.0,0.38708678]
[1693578983130,0.07040394,25865.0,25864.0,0.04270868]
[1693578983542,0.2832921,25866.0,25862.0,0.024]
[1693578983748,0.0095921,25864.0,25862.0,0.024]
[1693578984004,0.09476381,25864.0,25862.0,0.024]
[1693578984190,0.0095921,25861.0,25857.0,0.07080203]
[1693578984392,0.08517171,25860.0,25858.0,0.38708678]
[1693578984601,0.0095921,25861.0,25859.0,0.04578888]
[1693578984851,0.0095921,25861.0,25859.0,0.43287566]
[1693578986064,0.0808203,25861.0,25859.0,0.43287566]
[1693578986646,0.0818203,25861.0,25859.0,0.46987566]
[1693578986859,0.06244717,25860.0,25859.0,0.62461066]
[1693578987109,0.06244717,25860.0,25859.0,0.57882178]
[1693578987578,0.06244717,25860.0,25859.0,0.61582178]
[1693578987798,0.06244717,25860.0,25859.0,0.57882178]
[1693578988008,0.0095921,25861.0,25859.0,0.57882178]
[1693578988009,0.0095921,25861.0,25859.0,0.54182178]
[1693578988228,0.0095921,25861.0,25860.0,0.05418218]
[1693578988654,0.0095921,25861.0,25860.0,0.44126896]
[1693578989990,0.0105921,25861.0,25860.0,0.47826896]
[1693578990201,0.001,25861.0,25860.0,0.47826896]
[1693578990835,0.001,25861.0,25860.0,0.51826896]
[1693578991252,0.001,25861.0,25860.0,0.55526896]
[1693578991894,0.001,25861.0,25860.0,0.77709003]
[1693578993782,0.001,25861.0,25860.0,0.55526896]
[1693578993982,0.001,25861.0,25860.0,0.74640421]
[1693578994187,0.001,25861.0,25860.0,0.55526896]
[1693578994440,0.001,25861.0,25860.0,0.71496896]
[1693578994840,0.001,25861.0,25860.0,0.69996896]
[1693578995059,0.001,25861.0,25860.0,1.14482512]
[1693578995265,0.0095921,25867.0,25863.0,0.06]
[1693578995522,0.0095921,25867.0,25864.0,0.54192149]
[1693578995723,0.0095921,25867.0,25865.0,0.22545253]
[1693578995938,0.0095921,25867.0,25866.0,0.38708678]
[1693578997430,0.0095921,25867.0,25866.0,0.42508678]
[1693578997860,0.0095921,25867.0,25866.0,0.46208678]
[1693578998509,0.0095921,25867.0,25866.0,0.652481]
[1693578998734,0.0095921,25867.0,25866.0,0.69166318]
[1693579000047,0.07355922,25867.0,25866.0,0.50126896]
[1693579001776,0.0095921,25867.0,25866.0,0.50126896]
[1693579002915,0.08383822,25867.0,25866.0,0.50126896]
[1693579004459,0.08383822,25867.0,25866.0,0.11418218]
[1693579004667,0.08383822,25867.0,25866.0,0.075]
[1693579005821,0.0095921,25867.0,25866.0,0.075]
[1693579006946,0.07683125,25867.0,25866.0,0.075]
[1693579007352,0.0095921,25867.0,25866.0,0.46208678]
[1693579007557,0.0095921,25867.0,25866.0,0.66451835]
[1693579008992,0.0095921,25867.0,25866.0,0.66411035]
[1693579010131,0.0095921,25867.0,25866.0,0.67847992]
[1693579010342,0.0095921,25867.0,25866.0,0.47604835]
[1693579011614,0.0095921,25867.0,25866.0,0.6654672]
[1693579013878,0.0095921,25867.0,25866.0,0.47604835]
[1693579014088,0.08082139,25867.0,25866.0,0.47604835]
[1693579014913,0.08082139,25867.0,25866.0,0.08896157]
[1693579015933,0.0095921,25867.0,25866.0,0.08896157]
[1693579016134,0.0095921,25867.0,25866.0,0.70748967]
[1693579019015,0.0095921,25867.0,25866.0,0.59574835]
[1693579019215,0.0095921,25867.0,25866.0,0.78239367]
[1693579020653,0.2623921,25868.0,25866.0,0.59574835]
[1693579020933,0.2623921,25868.0,25867.0,0.50678678]
[1693579021148,0.25276539,25869.0,25867.0,0.50678678]
[1693579021367,0.25276539,25869.0,25866.0,0.08896157]
[1693579021368,0.09236539,25873.0,25871.0,0.04]
[1693579021579,0.09236539,25874.0,25872.0,0.54192149]
[1693579021797,0.13853944,25875.0,25873.0,0.34908266]
[1693579021798,0.24049693,25875.0,25873.0,0.34908266]
[1693579022001,0.0095921,25875.0,25874.0,0.38708678]
[1693579022281,0.10195749,25875.0,25874.0,0.38708678]
[1693579022489,0.0095921,25875.0,25874.0,0.38708678]
[1693579022703,0.10195749,25875.0,25874.0,0.38708678]
[1693579024146,0.10195749,25875.0,25874.0,0.42408678]
[1693579025035,0.29667534,25875.0,25874.0,0.42408678]
[1693579025241,0.29667534,25875.0,25874.0,0.43836312]
[1693579025844,0.10195749,25875.0,25874.0,0.43836312]
[1693579026274,0.0095921,25875.0,25874.0,0.43836312]
[1693579026634,0.40039693,25876.0,25874.0,0.43836312]
[1693579026843,0.09236539,25876.0,25875.0,0.16499897]
[1693579027043,0.2808921,25877.0,25875.0,0.50678678]
[1693579027267,0.0095921,25877.0,25876.0,0.50678678]
[1693579029371,1.1236763,25877.0,25876.0,0.50678678]
[1693579029593,0.0095921,25877.0,25876.0,0.50678678]
[1693579030285,0.0095921,25877.0,25876.0,0.742102]
[1693579030489,0.0095921,25877.0,25876.0,0.42408678]
[1693579030697,0.08388875,25877.0,25876.0,0.42408678]
[1693579030874,1.19800832,25877.0,25876.0,0.42408678]
[1693579031284,1.19800832,25877.0,25876.0,0.46108678]
[1693579031514,1.19800832,25877.0,25876.0,0.074]
[1693579031924,1.19760539,25877.0,25876.0,0.074]
[1693579032786,1.12330874,25877.0,25876.0,0.46108678]
[1693579033006,0.00918917,25877.0,25876.0,0.80935143]
[1693579033867,1.1233084,25877.0,25876.0,0.80935143]
[1693579034054,1.1233084,25877.0,25876.0,0.68965143]
[1693579037226,0.00918917,25877.0,25876.0,0.68965143]
[1693579038327,0.00918917,25877.0,25876.0,0.074]
[1693579038451,1.19509852,25877.0,25876.0,0.074]
[1693579039308,1.1232811,25877.0,25876.0,0.074]
[1693579039553,1.1232811,25877.0,25876.0,0.65830175]
[1693579040080,1.12330466,25877.0,25876.0,0.65830175]
[1693579040281,1.12330466,25877.0,25876.0,0.67257069]
[1693579040901,1.18319789,25877.0,25876.0,0.47535572]
[1693579041108,1.24300466,25877.0,25876.0,0.08826894]
[1693579041309,1.39363508,25877.0,25876.0,0.08826894]
[1693579041923,1.39363508,25877.0,25876.0,0.074]
[1693579042337,1.12330466,25877.0,25876.0,0.64457732]
[1693579042743,1.12330466,25877.0,25876.0,0.65884506]
[1693579042940,1.12330466,25877.0,25876.0,0.47535452]
[1693579043345,1.21545186,25877.0,25876.0,0.47535452]
[1693579043906,1.12330466,25877.0,25876.0,0.47535452]
[1693579046545,1.1893774,25877.0,25876.0,0.08826774]
[1693579046747,1.1893774,25877.0,25876.0,0.074]
[1693579046748,1.77100395,25877.0,25876.0,0.074]
[1693579048120,1.63278314,25877.0,25876.0,0.074]
[1693579048322,1.77100395,25877.0,25876.0,0.074]
[1693579049318,1.67885675,25877.0,25876.0,0.074]
[1693579049901,2.30392185,25877.0,25876.0,0.074]
[1693579050119,3.47309838,25877.0,25876.0,0.074]
[1693579050351,3.38999838,25877.0,25876.0,0.074]
[1693579050564,2.09449242,25877.0,25876.0,0.074]
[1693579050761,2.03652744,25877.0,25876.0,0.074]
[1693579051383,1.95652744,25877.0,25876.0,0.074]
[1693579051588,1.89015943,25877.0,25876.0,0.037]
[1693579051829,1.82451943,25877.0,25876.0,0.037]
[1693579052039,1.82517943,25877.0,25876.0,0.048]
[1693579052237,1.82175943,25877.0,25876.0,0.011]
[1693579052479,1.81227943,25877.0,25873.0,0.154635]
[1693579052724,0.33966088,25877.0,25876.0,0.038]
[1693579052927,0.33966088,25877.0,25873.0,0.154635]
[1693579052928,1.90645597,25877.0,25873.0,0.154635]
[1693579053129,0.3504475,25874.0,25873.0,0.154635]
[1693579053337,1.56763678,25874.0,25873.0,0.154635]
[1693579053748,1.47533778,25874.0,25873.0,0.154635]
[1693579053954,1.47533778,25874.0,25873.0,0.156635]
[1693579054126,1.47533778,25874.0,25873.0,0.154635]
[1693579055593,1.35563778,25874.0,25873.0,0.230635]
[1693579055771,1.44793171,25874.0,25873.0,0.2536985]
[1693579055971,1.44793171,25874.0,25873.0,0.64078528]
[1693579056173,1.44793171,25874.0,25873.0,0.83358527]
[1693579056372,1.21578917,25874.0,25873.0,0.84710493]
[1693579056590,1.21578917,25874.0,25873.0,0.65430494]
[1693579057357,1.21578917,25874.0,25873.0,0.64930494]
[1693579058295,1.11430607,25874.0,25873.0,0.95095829]
[1693579058505,1.12349524,25874.0,25873.0,0.95095829]
[1693579059551,1.12349524,25874.0,25873.0,0.91295829]
[1693579059763,1.12349524,25874.0,25873.0,0.87495829]
[1693579059969,1.12349524,25874.0,25873.0,0.91195829]
[1693579060170,1.12349524,25874.0,25873.0,0.94895829]
[1693579060507,1.12349524,25874.0,25873.0,0.91195829]
[1693579060706,0.00918917,25874.0,25873.0,0.91195829]
[1693579061106,1.12335964,25874.0,25873.0,0.87495829]
[1693579061332,1.12335964,25874.0,25873.0,0.91195829]
[1693579061538,1.12335964,25874.0,25873.0,0.94895829]
[1693579061736,1.12335964,25874.0,25873.0,0.90695829]
[1693579061938,1.12335964,25874.0,25873.0,0.86995829]
[1693579062388,1.12335964,25874.0,25873.0,0.90695829]
[1693579063615,1.21565357,25874.0,25873.0,0.90695829]
[1693579063827,1.21565357,25874.0,25873.0,0.94395829]
[1693579063992,1.21565357,25874.0,25873.0,0.90695829]
[1693579064386,1.2064644,25874.0,25873.0,0.90695829]
[1693579064750,0.09229393,25875.0,25873.0,1.31829141]
[1693579064950,0.09229393,25875.0,25874.0,0.50678678]
[1693579065354,1.20641602,25875.0,25874.0,0.50678678]
[1693579066155,1.20641602,25875.0,25874.0,0.67308983]
[1693579066684,0.09229393,25876.0,25874.0,0.86678678]
[1693579066887,0.09229393,25876.0,25875.0,0.1197]
[1693579067094,0.09229393,25876.0,25875.0,0.50678678]
[1693579067298,1.20636631,25876.0,25875.0,0.50678678]
[1693579067855,1.20637449,25876.0,25875.0,0.50678678]
[1693579068285,1.20637449,25876.0,25875.0,0.54378678]
[1693579068443,1.20637449,25876.0,25875.0,0.58078678]
[1693579068831,1.20637449,25876.0,25875.0,0.75093014]
[1693579069879,1.20637449,25876.0,25875.0,0.46108678]
[1693579070085,1.25266422,25876.0,25875.0,0.46108678]
[1693579070293,1.25266422,25876.0,25875.0,0.64877876]
[1693579070294,1.34516282,25876.0,25875.0,0.64877876]
[1693579070498,1.20657916,25876.0,25875.0,0.6622383]
[1693579071719,1.34516282,25876.0,25875.0,0.47454632]
[1693579071927,1.25266422,25876.0,25875.0,0.47454632]
[1693579072306,1.34516544,25876.0,25875.0,0.47454632]
[1693579072510,1.35435461,25876.0,25875.0,0.47454632]
[1693579072691,1.26185339,25876.0,25875.0,0.47454632]
[1693579073089,1.44645139,25876.0,25875.0,0.47454632]
[1693579074606,1.84658968,25876.0,25875.0,0.08745954]
[1693579074819,1.84658968,25876.0,25875.0,0.074]
[1693579074820,1.78169168,25876.0,25875.0,0.074]
[1693579075230,1.78169168,25876.0,25875.0,0.10933759]
[1693579075846,1.73598064,25876.0,25875.0,0.10933759]
[1693579076248,1.73598064,25876.0,25875.0,0.0958635]
[1693579076490,1.73589111,25876.0,25875.0,0.0958635]
[1693579076697,1.96663861,25876.0,25875.0,0.0958635]
[1693579077522,1.84693861,25876.0,25875.0,0.0958635]
[1693579077967,1.66190215,25876.0,25875.0,0.0958635]
[1693579078143,1.66190215,25876.0,25875.0,0.10885306]
[1693579081210,1.84694361,25876.0,25875.0,0.10885306]
[1693579082558,1.83171359,25876.0,25875.0,0.10885306]
[1693579082753,1.64667213,25876.0,25875.0,0.10885306]
[1693579082979,1.41592463,25876.0,25875.0,0.10885306]
[1693579083378,1.647204,25876.0,25875.0,0.10885306]
[1693579085209,1.58983618,25876.0,25875.0,0.10885306]
[1693579085449,1.77487887,25876.0,25875.0,0.72224157]
[1693579085626,1.30831242,25876.0,25875.0,0.72224157]
[1693579086037,1.26205413,25876.0,25875.0,0.72224157]
[1693579086213,1.35457198,25876.0,25875.0,0.72224157]
[1693579086568,0.00918917,25876.0,25875.0,0.61563984]
[1693579086783,0.00918917,25876.0,25875.0,0.82722946]
[1693579087014,0.10170702,25876.0,25875.0,0.82722946]
[1693579087436,0.10171359,25876.0,25875.0,0.82722946]
[1693579087638,0.10171359,25876.0,25875.0,0.8142399]
[1693579087816,0.10171359,25876.0,25875.0,0.70750648]
[1693579087817,1.21577782,25876.0,25875.0,0.70750648]
[1693579088360,1.26204004,25876.0,25875.0,0.70750648]
[1693579088810,1.21577412,25876.0,25875.0,0.70750648]
[1693579091764,1.21577412,25876.0,25875.0,0.70758548]
[1693579093024,1.35456076,25876.0,25875.0,0.70758548]
[1693579093182,1.32996151,25876.0,25875.0,0.49599586]
[1693579094701,1.4224833,25876.0,25875.0,0.49599586]
[1693579095288,1.35456183,25876.0,25875.0,0.49599586]
[1693579095659,1.34537266,25876.0,25875.0,0.72952085]
[1693579095863,1.35456183,25876.0,25875.0,0.72952085]
[1693579096071,1.21577519,25876.0,25875.0,0.72952085]
[1693579100147,1.21577519,25876.0,25875.0,0.49599586]
[1693579100362,0.10171096,25876.0,25875.0,0.78605297]
[1693579100624,0.00918917,25876.0,25875.0,0.78605297]
[1693579102614,0.00918917,25876.0,25875.0,0.61569586]
[1693579102962,0.00918917,25876.0,25875.0,0.84264887]
[1693579103392,0.00918917,25876.0,25875.0,0.61569586]
[1693579104014,0.10171096,25877.0,25875.0,0.97569586]
[1693579104214,0.10171096,25877.0,25876.0,0.38708678]
[1693579104629,0.09252179,25877.0,25876.0,0.4000766]
[1693579104835,0.10171096,25877.0,25876.0,0.4000766]
[1693579105246,0.09252179,25878.0,25877.0,0.06]
[1693579105454,0.0198,25879.0,25877.0,0.86678678]
[1693579105655,0.0198,25879.0,25878.0,0.56678678]
[1693579105894,0.0198,25879.0,25878.0,1.80778678]
[1693579108145,0.0198,25879.0,25878.0,1.88178678]
[1693579108380,0.0198,25879.0,25878.0,1.84478678]
[1693579108780,0.0198,25879.0,25878.0,1.88178678]
[1693579108994,0.0198,25879.0,25878.0,1.84478678]
[1693579109653,0.0198,25879.0,25878.0,1.80778678]
[1693579110040,0.0198,25879.0,25878.0,1.84478678]
[1693579110469,0.0198,25879.0,25878.0,1.80778678]
[1693579110672,0.0198,25879.0,25878.0,1.84478678]
[1693579111296,0.31238664,25884.0,25883.0,0.02]
[1693579111503,0.0198,25884.0,25883.0,0.71273232]
[1693579111709,0.0198,25884.0,25883.0,1.13243232]
[1693579111917,0.0198,25886.0,25885.0,0.08]
[1693579112125,0.0198,25886.0,25885.0,1.04162149]
[1693579112331,0.0198,25886.0,25885.0,0.86678678]
[1693579112540,0.0198,25886.0,25885.0,1.02134478]
[1693579114622,0.0198,25886.0,25885.0,1.05834478]
[1693579115046,0.0198,25886.0,25885.0,1.09534478]
[1693579115257,0.0198,25886.0,25885.0,1.1081071]
[1693579116541,0.0198,25886.0,25885.0,1.31457859]
[1693579116750,0.0198,25886.0,25885.0,0.9884071]
[1693579117364,0.0198,25886.0,25885.0,1.1081071]
[1693579118432,0.0198,25889.0,25888.0,0.15081083]
[1693579118654,0.0198,25893.0,25888.0,0.15081083]
[1693579118655,0.0198,25893.0,25892.0,0.06]
[1693579118874,0.0198,25893.0,25892.0,0.60192149]
[1693579119079,0.0198,25893.0,25892.0,1.02162149]
[1693579119294,0.0198,25893.0,25892.0,0.86678678]
[1693579120366,0.02898917,25893.0,25892.0,0.86678678]
[1693579120589,0.02898917,25893.0,25892.0,0.90378678]
[1693579121041,0.02898917,25893.0,25892.0,0.94078678]
[1693579121684,0.4394,25894.0,25893.0,0.08]
[1693579121901,0.0198,25895.0,25894.0,0.06]
[1693579122091,0.0198,25895.0,25894.0,0.86678678]
[1693579122595,0.0198,25895.0,25894.0,1.02128678]
[1693579123677,0.0198,25895.0,25894.0,1.05828678]
[1693579123889,0.0198,25895.0,25894.0,1.20629611]
[1693579124304,0.0198,25895.0,25894.0,1.28040997]
[1693579124517,0.0198,25895.0,25894.0,1.28072729]
[1693579124753,0.0198,25895.0,25894.0,1.16102729]
[1693579124939,0.0198,25895.0,25894.0,0.97558678]
[1693579125398,0.0198,25895.0,25894.0,1.30085762]
[1693579125613,0.0198,25895.0,25894.0,1.09528678]
[1693579126524,0.0198,25897.0,25896.0,0.06]
[1693579126738,0.0198,25897.0,25896.0,0.56678678]
[1693579126949,0.0198,25897.0,25896.0,0.86678678]
[1693579127793,0.0198,25897.0,25896.0,0.78408678]
[1693579128188,0.0098,25897.0,25896.0,0.74708678]
[1693579128420,0.0098,25897.0,25896.0,0.78408678]
[1693579129132,0.0098,25897.0,25896.0,0.97253007]
[1693579129944,0.0098,25897.0,25896.0,0.78408678]
[1693579130327,0.0098,25897.0,25896.0,0.83307734]
[1693579131991,0.0098,25897.0,25896.0,0.95277734]
[1693579134704,0.0098,25897.0,25896.0,0.87877734]
[1693579134912,0.182,25898.0,25897.0,0.06]
[1693579135121,0.182,25898.0,25897.0,0.86678678]
[1693579135332,0.02011,25899.0,25898.0,0.06]
[1693579135542,0.02011,25899.0,25898.0,0.86678678]
[1693579137013,0.02011,25899.0,25898.0,1.03144774]
[1693579137226,0.02011,25899.0,25898.0,0.91174774]
[1693579137445,0.02011,25899.0,25898.0,0.74708678]
[1693579137927,0.02011,25899.0,25898.0,0.97922628]
[1693579138140,0.02011,25899.0,25898.0,1.09892628]
[1693579138351,0.02011,25899.0,25898.0,0.86678678]
[1693579138561,0.02011,25899.0,25898.0,1.15809902]
[1693579138776,0.02011,25899.0,25898.0,1.12109902]
[1693579139226,0.02011,25899.0,25898.0,1.15809902]
[1693579139431,0.02011,25899.0,25898.0,0.94078678]
[1693579139641,0.02011,25899.0,25898.0,1.14418778]
[1693579139820,0.02011,25899.0,25898.0,1.12988057]
[1693579140036,0.02011,25899.0,25898.0,0.94078678]
[1693579140248,0.02011,25899.0,25898.0,0.82108678]
[1693579141097,0.02011,25899.0,25898.0,1.02934784]
[1693579141382,0.02011,25899.0,25898.0,1.00269775]
[1693579141617,0.09260853,25899.0,25898.0,0.074]
[1693579141842,1.32535957,25899.0,25898.0,0.074]
[1693579142057,1.26205021,25899.0,25898.0,0.074]
[1693579143344,1.31747885,25899.0,25898.0,0.074]
[1693579143767,1.31747885,25899.0,25898.0,0.037]
[1693579143988,1.26205021,25899.0,25898.0,0.037]
[1693579144896,1.26205021,25899.0,25898.0,0.074]
[1693579145899,1.33393738,25899.0,25898.0,0.074]
[1693579146078,1.33393738,25899.0,25898.0,0.073597]
[1693579148198,1.64248489,25899.0,25898.0,0.073597]
[1693579148403,1.63828489,25899.0,25898.0,0.073597]
[1693579148611,1.65738489,25899.0,25898.0,0.073597]
[1693579148738,1.66236489,25899.0,25898.0,0.073597]
[1693579148948,1.66194489,25899.0,25898.0,0.073597]
[1693579149148,1.71682489,25899.0,25898.0,0.073597]
[1693579149355,1.71682489,25899.0,25898.0,0.037]
[1693579149356,1.84972489,25899.0,25898.0,0.037]
[1693579149548,0.08,25896.0,25894.0,0.1545]
[1693579149779,1.23275104,25895.0,25894.0,0.1545]
[1693579150116,1.24194021,25895.0,25894.0,0.1545]
[1693579151358,1.47364561,25895.0,25894.0,0.1915]
[1693579151774,1.47364561,25895.0,25894.0,0.1545]
[1693579151994,1.53311138,25895.0,25894.0,0.1915]
[1693579152199,1.53311138,25895.0,25894.0,0.2285]
[1693579153251,1.47364561,25895.0,25894.0,0.2285]
[1693579153463,1.57364561,25895.0,25894.0,0.2285]
[1693579153676,1.66646561,25895.0,25894.0,0.2285]
[1693579153878,1.66688561,25895.0,25894.0,0.2285]
[1693579154085,1.65938561,25895.0,25894.0,0.2285]
[1693579154285,1.65950561,25895.0,25894.0,0.2285]
[1693579154503,1.65920561,25895.0,25894.0,0.2285]
[1693579154706,1.65890561,25895.0,25894.0,0.2285]
[1693579154915,2.10193239,25895.0,25894.0,0.2285]
[1693579155137,4.26592112,25895.0,25894.0,0.09637821]
[1693579155369,0.00918917,25886.0,25885.0,1.0]
[1693579155568,0.00918917,25883.0,25882.0,0.04]
[1693579155791,0.09436088,25883.0,25882.0,0.42708678]
[1693579156019,0.09436088,25883.0,25882.0,0.38708678]
[1693579156469,0.09436088,25883.0,25881.0,0.06]
[1693579156674,0.00918917,25882.0,25881.0,0.44708678]
[1693579156904,0.00918917,25882.0,25881.0,0.75816916]
[1693579157116,0.00918917,25882.0,25881.0,0.71816916]
[1693579157741,0.00918917,25882.0,25881.0,0.77816916]
[1693579157945,0.00918917,25882.0,25881.0,0.71816916]
[1693579158363,0.01218917,25882.0,25881.0,0.75516916]
[1693579158576,0.19059672,25882.0,25881.0,0.49216916]
[1693579158784,0.19059672,25882.0,25881.0,0.64676516]
[1693579159217,0.13488917,25882.0,25881.0,0.64676516]
[1693579160052,0.13488917,25882.0,25881.0,0.65760179]
[1693579160580,0.01518917,25882.0,25881.0,0.65760179]
[1693579162613,0.08603105,25882.0,25881.0,0.65760179]
[1693579163363,0.20573105,25882.0,25881.0,0.27051501]
[1693579163820,0.20573105,25882.0,25881.0,0.23943263]
[1693579164349,0.20273105,25882.0,25881.0,0.20243263]
[1693579165121,0.19973105,25882.0,25881.0,0.16543263]
[1693579165374,0.13188917,25882.0,25881.0,0.20243263]
[1693579165644,0.01218917,25882.0,25881.0,0.8143533]
[1693579167133,0.01518917,25882.0,25881.0,0.8513533]
[1693579167338,0.01511017,25882.0,25881.0,0.8513533]
[1693579172037,0.01511017,25882.0,25881.0,0.23943263]
[1693579172263,0.20842856,25882.0,25881.0,0.23943263]
[1693579175259,0.20803014,25882.0,25881.0,0.23943263]
[1693579175466,0.13441175,25882.0,25881.0,0.23943263]
[1693579176920,0.01471175,25882.0,25881.0,0.23943263]
[1693579177556,0.08883199,25882.0,25881.0,0.23943263]
[1693579177964,0.08883199,25882.0,25881.0,0.228596]
[1693579179622,0.01471175,25882.0,25881.0,0.228596]
[1693579179834,0.21441175,25882.0,25881.0,0.228596]
[1693579180043,0.31385175,25882.0,25881.0,0.228596]
[1693579180244,1.42236569,25882.0,25881.0,0.228596]
[1693579180452,1.34820569,25882.0,25881.0,0.228596]
[1693579181888,1.34020569,25882.0,25881.0,0.228596]
[1693579182912,1.41290442,25882.0,25881.0,0.228596]
[1693579183321,1.34020569,25882.0,25881.0,0.228596]
[1693579184133,1.3969077,25882.0,25881.0,0.228596]
[1693579185155,1.34020569,25882.0,25881.0,0.228596]
[1693579185723,1.40044706,25882.0,25881.0,0.228596]
[1693579186335,1.38044706,25882.0,25881.0,0.228596]
[1693579186531,1.72729247,25882.0,25881.0,0.228596]
[1693579186732,1.81387247,25882.0,25881.0,0.228596]
[1693579186934,1.81375247,25882.0,25881.0,0.228596]
[1693579187113,1.81405247,25882.0,25881.0,0.228596]
[1693579187330,1.81525247,25882.0,25881.0,0.228596]
[1693579187532,1.81501247,25882.0,25881.0,0.228596]
[1693579187737,1.81501247,25882.0,25872.0,0.019998]
[1693579187738,0.00071175,25873.0,25872.0,0.019998]
[1693579187955,0.20558346,25873.0,25872.0,0.019998]
[1693579188369,0.28053725,25873.0,25872.0,0.019998]
[1693579188583,0.19536554,25873.0,25872.0,0.019998]
[1693579189389,0.07566554,25873.0,25872.0,0.019998]
[1693579189805,0.19536554,25873.0,25872.0,0.019998]
[1693579190693,0.19936554,25873.0,25872.0,0.046998]
[1693579191286,0.20336554,25873.0,25872.0,0.074998]
[1693579191896,0.20336554,25873.0,25872.0,0.229676]
[1693579192986,0.20841175,25873.0,25872.0,0.229676]
[1693579193223,0.22841175,25873.0,25872.0,0.229676]
[1693579193477,1.21752771,25873.0,25872.0,0.074998]
[1693579193669,1.21752771,25873.0,25868.0,0.019998]
[1693579193670,0.50641175,25869.0,25868.0,0.019998]